bitfinex-derivatives/quotes_ETHF0:USTF0_20250620
["timestamp","ask_amount","ask_price","bid_price","bid_amount"]
[1750405852979,34.70606721,2542.7,2542.5,0.78652]
[1750405853185,34.70606721,2542.7,2542.3,3.34761]
[1750405853186,31.6086,2542.7,2542.3,3.34761]
[1750405853395,0.6391,2542.7,2542.6,0.78651]
[1750405853589,30.8221,2542.7,2542.6,0.78651]
[1750405853790,0.6391,2542.7,2542.6,0.78651]
[1750405854096,31.60858,2542.7,2542.6,0.78651]
[1750405854400,6.8331,2542.7,2542.6,0.78651]
[1750405854596,0.6391,2542.7,2542.6,0.78651]
[1750405855099,30.8201,2542.7,2542.6,0.78651]
[1750405855402,0.6391,2542.7,2542.6,0.78651]
[1750405857804,7.61858,2542.7,2542.6,0.78651]
[1750405859090,0.6391,2542.7,2542.6,0.78651]
[1750405859296,6.8321,2542.7,2542.6,0.78651]
[1750405860100,7.61858,2542.7,2542.6,0.78651]
[1750405861607,6.8321,2542.7,2542.6,0.78651]
[1750405862300,6.8321,2542.7,2542.6,2.11161]
[1750405864302,9.4008,2543.1,2543.0,0.78639]
[1750405864604,13.0,2544.1,2543.2,1.96579]
[1750405864605,3.99396,2543.8,2543.2,1.96579]
[1750405864803,6.193,2543.8,2543.6,0.78617]
[1750405864998,6.97909,2544.0,2543.6,3.2078]
[1750405865299,4.32323277,2544.7,2543.9,9.40273442]
[1750405865300,3.2078,2544.7,2543.9,9.40273442]
[1750405865502,3.2078,2544.7,2543.6,5.0]
[1750405865503,7.84968806,2547.2,2544.7,0.3936]
[1750405865695,0.92531562,2547.1,2546.8,3.2078]
[1750405865903,3.2078,2548.8,2547.3,5.90161]
[1750405866099,3.2078,2548.8,2546.9,32.025]
[1750405866100,21.86744787,2550.7,2549.6,3.2078]
[1750405866407,9.237,2551.1,2550.4,3.2078]
[1750405866408,54.543,2551.1,2550.4,3.2078]
[1750405866707,9.237,2551.7,2551.0,3.2078]
[1750405867010,7.11243535,2551.1,2549.4,1.96103]
[1750405867197,5.76322067,2550.4,2550.3,0.78414]
[1750405867397,56.2886,2551.0,2550.5,0.65237933]
[1750405867602,56.2886,2551.0,2549.3,7.11243535]
[1750405867603,56.2886,2551.0,2550.9,3.2078]
[1750405867801,56.2886,2551.0,2550.7,3.2078]
[1750405867802,63.40103535,2551.0,2550.7,3.2078]
[1750405868007,29.606,2550.9,2550.3,3.2078]
[1750405868308,7.11243535,2550.7,2550.3,3.2078]
[1750405868509,7.11243535,2550.7,2550.6,3.2078]
[1750405868695,43.9698707,2550.7,2549.0,3.2078]
[1750405868900,43.9698707,2550.7,2548.7,3.2078]
[1750405868901,3.2078,2549.4,2548.7,3.2078]
[1750405869095,7.11243535,2549.2,2548.4,3.2078]
[1750405869295,3.2078,2549.7,2548.3,7.11243535]
[1750405869505,3.2078,2549.8,2549.1,3.2078]
[1750405869700,9.931,2549.7,2549.1,3.2078]
[1750405869902,3.2078,2549.4,2548.8,3.2078]
[1750405870101,7.11243535,2549.5,2548.1,0.31654123]
[1750405870299,3.2078,2549.3,2548.2,3.2078]
[1750405870496,3.2078,2549.3,2548.6,3.2078]
[1750405870497,10.269,2549.2,2548.6,3.2078]
[1750405870701,10.269,2549.2,2548.3,3.2078]
[1750405870702,3.2078,2548.9,2548.3,3.2078]
[1750405870910,7.11243535,2548.5,2547.8,3.2078]
[1750405871102,10.269,2548.4,2547.8,3.2078]
[1750405871301,45.249,2548.3,2547.9,1.57013309]
[1750405871601,1.3168,2548.2,2548.1,3.2078]
[1750405871798,1.3168,2548.2,2548.1,7.83767247]
[1750405871995,1.3168,2548.2,2548.1,7.91616232]
[1750405872199,1.3168,2548.2,2548.1,8.70097232]
[1750405872403,5.0,2548.2,2548.1,1.6483872]
[1750405872612,5.0,2548.2,2548.1,1.56467474]
[1750405872814,5.0,2548.2,2548.1,0.07848985]
[1750405873408,5.0,2548.2,2548.1,1.56378718]
[1750405873815,5.0,2548.2,2548.1,1.48529733]
[1750405874014,12.11243535,2548.2,2548.1,1.48529733]
[1750405874304,12.11243535,2548.2,2547.7,2.22927734]
[1750405874305,15.32023535,2548.2,2547.7,2.22927734]
[1750405874508,7.11243535,2547.8,2547.6,3.2078]
[1750405874704,10.595,2547.7,2547.6,3.2078]
[1750405874901,13.8028,2547.7,2546.5,3.87121475]
[1750405875106,3.2078,2546.7,2546.6,1.15346571]
[1750405875302,13.8028,2546.7,2546.6,0.36819571]
[1750405875502,35.0028,2546.7,2545.9,0.78549]
[1750405875707,3.2078,2546.0,2545.7,7.74332875]
[1750405875910,10.595,2545.9,2545.6,7.74332875]
[1750405876103,10.595,2545.9,2545.8,0.78552]
[1750405876910,11.9756,2545.9,2545.8,0.78552]
[1750405877103,10.595,2545.9,2545.8,0.78552]
[1750405879210,10.595,2545.9,2545.8,1.47784935]
[1750405879611,1.3806,2546.3,2546.2,0.7854]
[1750405879808,43.8516,2546.3,2546.2,1.39916859]
[1750405880613,43.8546,2546.3,2546.2,1.39916859]
[1750405880907,3.2078,2546.4,2546.3,0.78537]
[1750405881112,45.6638,2546.4,2546.3,1.39913859]
[1750405881311,45.6638,2546.4,2546.3,0.78537]
[1750405881500,20.7813,2546.7,2546.6,0.78528]
[1750405881813,63.2223,2546.7,2546.6,1.39901283]
[1750405882009,47.0223,2546.7,2546.6,1.39896142]
[1750405882212,52.0223,2546.7,2546.6,1.39896142]
[1750405882413,47.0223,2546.7,2546.6,1.39896142]
[1750405882715,52.0223,2546.7,2546.6,1.39896142]
[1750405883115,52.0223,2546.7,2546.6,0.61368142]
[1750405883412,52.0223,2546.7,2546.6,1.39896142]
[1750405883911,52.0223,2546.7,2546.6,0.61368142]
[1750405884108,47.0043,2546.7,2546.6,1.39896142]
[1750405884312,46.9633,2546.7,2546.6,0.78528]
[1750405884511,4.5813,2546.7,2546.6,2.97004205]
[1750405884712,45.5918,2546.7,2546.6,2.35634587]
[1750405884915,3.2078,2546.7,2546.6,2.97000913]
[1750405885114,45.5998,2546.7,2546.6,2.97000913]
[1750405885316,3.2078,2546.7,2546.6,2.97000913]
[1750405885514,16.2,2547.0,2546.9,0.78518]
[1750405885822,10.943,2547.0,2546.9,2.96990913]
[1750405886007,46.5085,2547.4,2547.3,0.78506]
[1750405886205,88.8455,2547.4,2547.3,2.96966681]
[1750405886812,88.8455,2547.4,2547.3,5.96156818]
[1750405887709,88.8365,2547.4,2547.3,6.32210803]
[1750405888113,88.7985,2547.4,2547.3,6.32240243]
[1750405888612,88.7985,2547.4,2547.3,3.86395698]
[1750405888819,46.5085,2547.4,2547.3,3.86395698]
[1750405889016,87.538,2547.4,2547.3,2.35612587]
[1750405889316,85.1821751,2547.4,2547.3,3.58312531]
[1750405889618,39.35561277,2547.4,2547.3,3.58309306]
[1750405889822,34.64419633,2547.4,2547.3,3.56213834]
[1750405890207,3.2078,2547.5,2547.4,0.78503]
[1750405890420,45.238,2548.0,2547.9,0.78488]
[1750405890715,48.4458,2548.8,2548.0,1.96206]
[1750405891020,10.941,2548.7,2548.6,0.78464]
[1750405891209,0.78463,2548.7,2548.6,2.18152171]
[1750405891411,10.941,2548.9,2548.6,8.39656186]
[1750405891611,10.941,2548.9,2548.8,0.78458]
[1750405891820,42.351,2548.9,2548.8,2.9688338]
[1750405892511,3.99233,2549.1,2548.8,2.1842538]
[1750405892714,42.43,2549.8,2549.0,7.74332875]
[1750405892910,0.78435,2549.6,2549.5,3.2078]
[1750405893117,7.89687535,2549.3,2549.2,3.2078]
[1750405893318,84.64087535,2549.3,2549.2,5.35964615]
[1750405893520,89.64087535,2549.3,2549.2,5.35965022]
[1750405893814,87.698,2549.3,2549.2,6.14413022]
[1750405894014,88.48244,2549.3,2549.2,5.35963707]
[1750405894220,88.48244,2549.3,2549.2,6.14411707]
[1750405894221,45.229,2549.3,2549.2,6.14411707]
[1750405894422,87.678,2549.3,2549.2,6.14411707]
[1750405895123,93.46244,2549.3,2549.2,5.35963707]
[1750405895316,94.81514,2549.3,2549.2,5.35963707]
[1750405895815,45.229,2549.3,2549.2,5.35963707]
[1750405896010,45.229,2549.3,2549.2,9.16253985]
[1750405896214,45.229,2549.3,2549.2,6.13799237]
[1750405896420,45.229,2549.3,2549.2,13.88132112]
[1750405896622,45.229,2549.3,2549.2,18.88132112]
[1750405896826,45.229,2549.3,2549.2,16.90136808]
[1750405897136,45.229,2549.3,2549.2,13.88132112]
[1750405897420,45.229,2549.3,2549.2,18.84422977]
[1750405897626,45.229,2549.3,2549.2,13.84422977]
[1750405898016,87.715,2549.3,2549.2,15.18952977]
[1750405898212,45.229,2549.3,2549.2,15.18952977]
[1750405898413,45.229,2549.3,2549.2,15.18490229]
[1750405899013,45.229,2549.3,2549.2,18.20846855]
[1750405899219,45.229,2549.3,2549.2,18.2084698]
[1750405899921,87.693,2549.3,2549.2,15.18494461]
[1750405900320,87.736,2549.3,2549.2,15.18494461]
[1750405901121,45.229,2549.3,2549.2,15.18494461]
[1750405901430,87.721,2549.3,2549.2,15.17232704]
[1750405901828,87.721,2549.3,2549.2,15.16827833]
[1750405902022,45.229,2549.3,2549.2,15.16827833]
[1750405902227,87.734,2549.3,2549.2,15.16827833]
[1750405902730,87.734,2549.3,2549.2,16.08712838]
[1750405902929,87.734,2549.3,2549.2,8.34379963]
[1750405903230,87.734,2549.3,2549.2,13.63178229]
[1750405903526,87.743,2549.3,2549.2,15.89420116]
[1750405903730,45.229,2549.3,2549.2,15.89420116]
[1750405904038,76.797,2549.3,2549.2,15.89386141]
[1750405904629,76.797,2549.3,2549.2,15.89378721]
[1750405904926,76.797,2549.3,2549.2,13.63100988]
[1750405905627,76.797,2549.3,2549.2,13.63101562]
[1750405906229,45.229,2549.3,2549.2,13.63101562]
[1750405906735,1.3624,2550.0,2549.2,13.63101562]
[1750405906736,45.201,2550.2,2550.1,0.78418]
[1750405907035,88.76617,2550.2,2550.1,5.88731526]
[1750405907230,88.76617,2550.2,2550.1,5.88730068]
[1750405907531,87.982,2550.2,2550.1,5.88730068]
[1750405907934,45.201,2550.2,2550.1,5.88730716]
[1750405908334,56.315,2550.2,2550.1,5.88730716]
[1750405908731,87.972,2550.2,2550.1,7.39444299]
[1750405908934,45.201,2550.2,2550.1,5.88730716]
[1750405909139,87.963,2550.2,2550.1,7.39444299]
[1750405909939,88.74717,2550.2,2550.1,5.10312716]
[1750405910235,88.74717,2550.2,2550.1,5.88754331]
[1750405910440,88.74717,2550.2,2550.1,5.10334331]
[1750405911132,88.74717,2550.2,2550.1,5.88754331]
[1750405911838,56.313,2550.2,2550.1,5.88754331]
[1750405912030,45.201,2550.2,2550.1,5.88754331]
[1750405912229,88.027,2550.2,2550.1,5.34527109]
[1750405912439,88.027,2550.2,2550.1,5.88849747]
[1750405912745,88.81117,2550.2,2550.1,5.88849747]
[1750405913041,88.79617,2550.2,2550.1,5.34527109]
[1750405913241,88.79617,2550.2,2550.1,5.88850059]
[1750405914827,88.73617,2550.2,2550.1,5.88850059]
[1750405915229,93.73617,2550.2,2550.1,5.88850059]
[1750405915429,93.73617,2550.2,2550.1,6.61143642]
[1750405915640,57.09617,2550.2,2550.1,5.88850059]
[1750405915827,88.69417,2550.2,2550.1,5.88850059]
[1750405916035,57.09617,2550.2,2550.1,5.88965186]
[1750405916235,88.69417,2550.2,2550.1,5.88965186]
[1750405916439,88.69417,2550.2,2550.1,5.10545186]
[1750405916635,93.69417,2550.2,2550.1,5.88965186]
[1750405916832,93.69417,2550.2,2550.1,4.5374868]
[1750405917337,45.201,2550.2,2550.1,4.5374868]
[1750405917533,11.111,2550.6,2550.1,12.61897844]
[1750405917730,11.111,2550.6,2550.5,3.99188]
[1750405917932,42.79,2550.6,2550.5,4.5373668]
[1750405918131,43.57404,2550.6,2550.5,4.5373668]
[1750405918337,49.81804,2550.6,2550.5,3.7531055]
[1750405918937,0.78426,2550.0,2549.9,0.78422]
[1750405919242,43.58126,2550.0,2549.9,3.2078]
[1750405919434,48.58126,2550.0,2549.9,3.2078]
[1750405919743,0.78432,2549.7,2549.6,0.78433]
[1750405919937,46.4713,2550.0,2549.6,1.12423939]
[1750405920130,43.58227,2549.9,2549.8,0.78429]
[1750405920333,44.86757,2549.9,2549.8,1.90852939]
[1750405920530,11.11,2549.9,2549.8,1.90852939]
[1750405920733,42.837,2549.9,2549.8,9.65185814]
[1750405920940,42.837,2549.9,2549.8,12.51209397]
[1750405921344,42.837,2549.9,2549.8,13.26566189]
[1750405921535,42.837,2549.9,2549.8,11.00495814]
[1750405921732,42.837,2549.9,2549.8,11.17643448]
[1750405921931,42.837,2549.9,2549.8,3.4331565]
[1750405922343,42.837,2549.9,2549.8,1.90852939]
[1750405922640,11.11,2550.7,2550.1,0.78417]
[1750405922841,0.78414,2550.3,2550.2,2.64885552]
[1750405923147,0.78414,2550.3,2550.0,2.28692419]
[1750405923148,0.78429,2549.8,2549.7,3.2078]
[1750405923331,0.78435,2549.7,2549.6,0.78434]
[1750405923536,0.78438,2549.5,2549.4,1.52461613]
[1750405923732,0.78444,2549.4,2549.3,0.78441]
[1750405923943,43.124,2549.5,2549.3,0.78443]
[1750405924143,0.78444,2549.3,2549.2,109.99271]
[1750405924337,32.89244,2549.3,2549.2,109.99271]
[1750405925059,0.78444,2549.4,2549.3,0.78443]
[1750405925344,0.78444,2549.3,2549.2,110.77716]
[1750405925542,0.78443,2549.4,2549.2,109.99271]
[1750405925735,44.39744,2549.3,2549.2,110.77716]
[1750405925935,11.452,2549.4,2549.3,8.52776875]
[1750405926141,43.613,2549.4,2549.3,9.77766875]
[1750405926544,43.613,2549.4,2549.3,8.52776875]
[1750405926739,43.613,2549.4,2549.3,0.78444]
[1750405927149,0.78444,2549.3,2549.2,109.99271]
[1750405927342,44.39743,2549.4,2549.3,0.78444]
[1750405927643,0.78444,2549.3,2549.2,109.99271]
[1750405928247,2.07814,2549.3,2549.2,109.99271]
[1750405928546,1.2937,2549.3,2549.2,109.99271]
[1750405928743,2.07814,2549.3,2549.2,109.99271]
[1750405928938,2.07814,2549.3,2549.2,110.77719]
[1750405929147,45.85614,2549.3,2549.2,109.99271]
[1750405929847,44.56244,2549.3,2549.2,109.99271]
[1750405930141,44.56244,2549.3,2549.2,110.77719]
[1750405930346,1.96099,2549.5,2549.2,109.99271]
[1750405930546,44.54243,2549.4,2549.3,0.78441]
[1750405930850,0.78444,2549.3,2549.2,110.77716]
[1750405931345,0.78444,2549.4,2549.3,0.78441]
[1750405931541,44.52044,2549.4,2549.3,0.78441]
[1750405931751,0.78442,2549.5,2549.4,0.78439]
[1750405932047,44.51142,2549.5,2549.4,0.78439]
[1750405932243,12.23737,2549.6,2549.5,0.78435]
[1750405932555,44.49037,2549.6,2549.5,0.78435]
[1750405932849,12.23737,2549.6,2549.5,0.78435]
[1750405933053,0.78443,2549.5,2549.4,0.7844]
[1750405933253,0.78441,2549.4,2549.3,0.78443]
[1750405933443,0.78444,2549.3,2549.2,109.99271]
[1750405933848,5.16841,2550.0,2549.2,117.73603875]
[1750405934055,0.78438,2549.6,2549.4,3.2078]
[1750405934238,0.78435,2549.7,2549.6,0.78432]
[1750405934440,11.453,2549.7,2549.6,0.78432]
[1750405934747,43.701,2549.7,2549.6,8.52764875]
[1750405935050,43.701,2549.7,2549.6,9.64889725]
[1750405935357,3.99205,2550.0,2549.8,54.18779]
[1750405935649,43.686,2549.9,2549.8,115.12917831]
[1750405935952,43.686,2549.9,2549.8,116.25003513]
[1750405936150,45.182,2550.1,2549.9,0.78423]
[1750405936347,44.46923,2550.0,2549.9,8.52755875]
[1750405936650,44.46923,2550.0,2549.9,1.90498779]
[1750405936854,44.46923,2550.0,2549.9,3.0493661]
[1750405937052,43.685,2550.0,2549.9,3.0493661]
[1750405937350,45.96622,2550.1,2550.0,0.78423]
[1750405937650,89.63122,2550.1,2550.0,1.12075779]
[1750405937848,89.63122,2550.1,2550.0,1.90498779]
[1750405938452,45.96622,2550.1,2550.0,1.90498779]
[1750405938648,89.62122,2550.1,2550.0,1.12075779]
[1750405939850,45.96622,2550.1,2550.0,1.12075779]
[1750405940144,94.53722,2550.1,2550.0,1.12075779]
[1750405940453,94.53722,2550.1,2549.8,110.06204781]
[1750405940454,0.78426,2549.9,2549.8,110.06204781]
[1750405940753,32.89326,2549.9,2549.8,111.1832599]
[1750405941155,37.89326,2549.9,2549.8,111.1832599]
[1750405941357,37.89326,2549.9,2549.8,110.06204781]
[1750405941554,45.00569535,2549.9,2549.8,110.06204781]
[1750405942955,5.78426,2549.9,2549.8,110.06204781]
[1750405943155,49.40626,2549.9,2549.8,110.06204781]
[1750405944352,44.40626,2549.9,2549.8,110.06204781]
[1750405944558,49.40426,2549.9,2549.8,110.06204781]
[1750405945858,56.44869535,2549.9,2549.8,84.7198127]
[1750405946065,17.23626,2549.9,2549.8,84.7198127]
[1750405946259,49.32326,2549.9,2549.8,84.7198127]
[1750405946459,49.32326,2549.9,2549.8,81.8644527]
[1750405946655,49.32326,2549.9,2549.8,79.6656027]
[1750405946862,55.7265782,2549.9,2549.8,77.9635327]
[1750405947063,55.7265782,2549.9,2549.8,74.8570927]
[1750405947270,55.7265782,2549.9,2549.8,72.6838327]
[1750405947565,55.7265782,2549.9,2549.8,69.4218927]
[1750405947869,55.7895782,2549.9,2549.8,69.4218927]
[1750405948064,12.1875782,2549.9,2549.8,66.2479027]
[1750405948261,55.7885782,2549.9,2549.8,63.3823827]
[1750405948461,55.7885782,2549.9,2549.8,61.8108927]
[1750405948970,55.7885782,2549.9,2549.8,60.0966627]
[1750405949168,12.1875782,2549.9,2549.8,58.4230527]
[1750405949465,55.7595782,2549.9,2549.8,52.9822927]
[1750405950067,55.7595782,2549.9,2549.8,50.9522327]
[1750405950268,12.1875782,2549.9,2549.8,47.7091427]
[1750405950467,55.7055782,2549.9,2549.8,45.1799627]
[1750405951069,55.7055782,2549.9,2549.8,29.42582021]
[1750405951269,55.7055782,2549.9,2549.8,19.8488569]
[1750405951469,55.7055782,2549.9,2549.8,17.62534909]
[1750405951670,57.0022782,2549.9,2549.8,17.62534909]
[1750405951868,59.330107,2549.9,2549.8,17.62534909]
[1750405952069,59.330107,2549.9,2549.8,12.86656909]
[1750405952268,59.330107,2549.9,2549.8,7.92095909]
[1750405952469,59.330107,2549.9,2549.8,5.08358743]
[1750405952670,60.9382782,2549.9,2549.8,3.01298743]
[1750405952972,64.04204994,2549.9,2549.8,7.43e-06]
[1750405953175,0.78454,2549.0,2548.9,0.06933781]
[1750405953376,99.0076582,2549.0,2548.9,7.81e-06]
[1750405953577,0.78472,2548.4,2548.3,3.2078]
[1750405953772,44.20972,2548.4,2548.3,4.5878]
[1750405954071,44.20972,2548.4,2548.3,12.33113618]
[1750405954564,0.78472,2548.4,2548.3,17.33113618]
[1750405954768,32.74472,2548.4,2548.3,17.33113618]
[1750405955072,32.74472,2548.4,2548.3,18.11586618]
[1750405955274,31.96,2548.4,2548.3,18.11586618]
[1750405955476,43.31,2548.5,2548.4,0.78472]
[1750405955671,43.31,2548.5,2548.4,9.90805618]
[1750405955974,44.09469,2548.5,2548.4,9.12333618]
[1750405957368,44.09469,2548.5,2548.4,1.38]
[1750405957768,0.78469,2548.5,2548.4,9.12333618]
[1750405957968,44.07869,2548.5,2548.4,1.38]
[1750405958172,12.13669,2548.5,2548.4,9.12333618]
[1750405958372,44.07869,2548.5,2548.4,9.12333618]
[1750405959679,44.07869,2548.5,2548.4,1.38]
[1750405960274,0.78472,2548.4,2548.3,3.27713781]
[1750405960476,0.78472,2548.4,2548.3,11.02047399]
[1750405960682,0.78472,2548.4,2548.3,4.4884]
[1750405961081,43.96372,2548.4,2548.3,12.23173618]
[1750405961887,43.95172,2548.4,2548.3,13.01648618]
[1750405962184,43.95172,2548.4,2548.3,12.23173618]
[1750405963984,43.93572,2548.4,2548.3,12.23173618]
[1750405965979,43.82672,2548.4,2548.3,12.23173618]
[1750405966582,0.78472,2548.4,2548.3,12.23173618]
[1750405966786,43.79772,2548.4,2548.3,12.23173618]
[1750405967982,43.79772,2548.4,2548.3,1.2806]
[1750405968184,1.96195,2548.3,2547.9,3.2078]
[1750405968383,0.78484,2548.0,2547.9,10.95113618]
[1750405968585,0.78484,2548.0,2547.9,12.22713618]
[1750405968781,32.45484,2548.0,2547.9,12.22713618]
[1750405968981,32.45484,2548.0,2547.9,4.4838]
[1750405971377,32.45484,2548.0,2547.9,3.2078]
[1750405971578,0.78494,2547.7,2547.6,1.2642]
[1750405971784,32.47694,2547.7,2547.6,1.2642]
[1750405971995,32.47694,2547.7,2547.6,9.00753618]
[1750405972384,43.91094,2547.7,2547.6,9.00753618]
[1750405972585,0.78494,2547.7,2547.6,9.00753618]
[1750405973091,43.94594,2547.7,2547.6,9.00753618]
[1750405973291,0.78494,2547.7,2547.6,9.00753618]
[1750405973495,43.95994,2547.7,2547.6,9.00753618]
[1750405974389,43.95994,2547.7,2547.6,9.79250618]
[1750405975092,43.95994,2547.7,2547.6,9.00753618]
[1750405975289,0.78494,2547.7,2547.6,9.79250618]
[1750405975489,10.3189,2547.9,2547.8,0.78491]
[1750405975691,10.3189,2547.9,2547.8,3.99271]
[1750405975993,11.10377,2547.9,2547.8,11.80538399]
[1750405976195,11.10377,2547.9,2547.8,11.02047399]
[1750405976696,11.10377,2547.9,2547.8,3.27713781]
[1750405976896,0.78494,2547.7,2547.6,1.14437831]
[1750405977195,0.78497,2547.6,2547.5,4.98127831]
[1750405977594,0.78497,2547.6,2547.5,12.72461449]
[1750405978490,0.78497,2547.6,2547.5,11.58023618]
[1750405978689,0.78497,2547.6,2547.5,12.36523618]
[1750405979084,0.78497,2547.6,2547.5,11.58023618]
[1750405979895,0.78497,2547.6,2547.5,13.10485231]
[1750405980095,32.54697,2547.6,2547.5,12.36521618]
[1750405980490,32.53297,2547.6,2547.5,13.88983231]
[1750405981393,0.78497,2547.6,2547.5,13.10485231]
[1750405981693,0.78496,2547.7,2547.6,0.78494]
[1750405981895,12.14087,2547.9,2547.8,7.74333618]
[1750405982102,12.14087,2547.9,2547.8,8.89115061]
[1750405982293,12.14087,2547.9,2547.8,7.74333618]
[1750405983599,44.07187,2547.9,2547.8,7.74333618]
[1750405984401,12.14087,2547.9,2547.8,8.52824618]
[1750405984594,44.07187,2547.9,2547.8,8.52824618]
[1750405984794,44.07187,2547.9,2547.8,7.74333618]
[1750405985908,44.07187,2547.9,2547.8,10.95113618]
[1750405986702,32.59387,2547.9,2547.8,10.95113618]
[1750405987003,32.59387,2547.9,2547.8,12.09895061]
[1750405989299,0.78491,2547.8,2547.7,1.14781443]
[1750405989503,0.78494,2547.7,2547.6,1.14781443]
[1750405989806,3.86615691,2547.8,2547.7,7.74333618]
[1750405990004,1.96246,2547.6,2547.3,2.12e-06]
[1750405990206,1.96276,2547.2,2546.8,1.53039789]
[1750405990397,1.96266,2547.3,2546.3,3.02352519]
[1750405990398,5.04422691,2546.9,2546.3,5.49472419]
[1750405990599,0.78534,2546.4,2546.3,5.49472419]
[1750405990896,0.78534,2546.4,2546.3,8.5759711]
[1750405991099,0.78532,2546.5,2546.3,19.81772309]
[1750405991301,32.52028,2546.6,2546.5,7.74333618]
[1750405994005,0.78528,2546.6,2546.5,7.74333618]
[1750405994306,31.59,2546.7,2546.5,12.74333618]
[1750405994597,32.37524,2546.7,2546.6,4.494]
[1750405994799,32.37524,2546.7,2546.6,12.23733618]
[1750405994993,32.37524,2546.7,2546.6,10.95113618]
[1750405996503,1.96326,2546.6,2546.3,3.2078]
[1750405996702,1.96326,2546.6,2546.4,7.74333618]
[1750405996703,0.78531,2546.5,2546.4,7.74333618]
[1750405996909,1.2472,2546.6,2546.3,0.72042]
[1750405997101,1.2472,2546.4,2545.0,3.2078]
[1750405997407,3.2078,2545.6,2545.0,4.4993]
[1750405997607,31.48,2545.5,2545.0,4.4993]
[1750405997796,0.78574,2545.1,2545.0,4.4993]
[1750405998110,31.48,2545.5,2545.0,4.4993]
[1750405998111,0.78573,2545.2,2545.0,4.4993]
[1750405998903,0.78574,2545.1,2545.0,4.4993]
[1750405999300,39.77235074,2545.1,2544.4,3.2078]
[1750405999512,3.2078,2545.0,2544.4,3.2078]
[1750405999702,0.7859,2544.6,2544.5,1.3208]
[1750405999902,0.78605,2544.1,2544.0,3.863]
[1750406000400,5.17254,2544.6,2544.0,3.863]
[1750406000612,3.2078,2544.6,2544.1,0.78602]
[1750406000809,3.2078,2544.6,2544.1,1.3208]
[1750406001001,0.7859,2544.6,2544.3,3.99378]
[1750406001199,0.78588,2544.7,2544.4,1.3208]
[1750406001600,0.78592,2544.5,2544.4,1.3208]
[1750406001801,0.78591,2544.6,2544.3,3.2078]
[1750406002011,0.78591,2544.6,2544.4,1.2488]
[1750406002316,31.4,2544.8,2544.4,2.03475]
[1750406002498,0.6571,2544.9,2544.4,1.2488]
[1750406002705,31.341,2544.8,2544.5,0.7859]
[1750406002909,0.78592,2544.6,2544.4,1.2488]
[1750406003211,31.341,2544.8,2544.4,2.03473]
[1750406003417,0.78589,2544.6,2544.4,1.2488]
[1750406003810,48.4398,2545.5,2544.4,23.62473074]
[1750406004019,0.78566,2545.4,2544.9,3.2078]
[1750406004212,0.78566,2545.4,2545.2,0.7857]
[1750406004708,3.99344,2545.5,2545.3,0.78567]
[1750406004910,3.2078,2545.5,2545.3,0.78567]
[1750406005111,3.99343,2545.5,2545.3,0.78567]
[1750406005715,3.99343,2545.5,2545.4,1.3189]
[1750406006612,0.78565,2545.4,2545.3,0.06933781]
[1750406007404,0.7857,2545.3,2545.1,0.78572]
[1750406007714,0.7857,2545.3,2545.2,1.3189]
[1750406008114,0.7857,2545.3,2545.1,0.78572]
[1750406008115,3.2078,2545.5,2545.0,0.78577]
[1750406008315,0.78572,2545.2,2545.0,2.04067]
[1750406008616,0.78572,2545.2,2545.1,0.78574]
[1750406008813,0.78572,2545.2,2545.0,2.04065]
[1750406009414,0.78574,2545.1,2545.0,2.04065]
[1750406009807,0.78574,2545.1,2545.0,7.04065]
[1750406010203,0.78577,2545.0,2544.9,3.8485]
[1750406010417,0.78577,2545.0,2544.9,3.2078]
[1750406011411,0.78577,2545.0,2544.9,3.9936]
[1750406011818,6.41493074,2545.3,2545.0,0.78577]
[1750406012009,1.96414,2545.4,2544.9,3.2078]
[1750406012208,0.78576,2545.1,2545.0,2.10615]
[1750406012408,0.78576,2545.1,2545.0,2.10617]
[1750406012712,0.78577,2545.0,2544.9,3.99357]
[1750406013114,0.78576,2545.1,2545.0,0.78575]
[1750406014314,0.78577,2545.0,2544.9,3.2078]
[1750406014617,0.78577,2545.0,2544.9,3.27713781]
[1750406015319,31.47577,2545.0,2544.9,0.06933781]
[1750406015519,0.78598,2544.3,2544.2,3.99382]
[1750406015714,0.78598,2544.3,2544.2,3.2078]
[1750406016720,3.28408,2544.7,2544.6,0.78588]
[1750406016721,0.78588,2544.7,2544.6,0.78588]
[1750406016919,1.96447,2545.0,2544.3,1.2642]
[1750406017119,0.78588,2544.7,2544.6,0.78588]
[1750406017713,0.78589,2544.6,2544.5,3.9937]
[1750406018621,0.78592,2544.5,2544.4,0.78595]
[1750406018812,0.78593,2544.5,2544.4,0.78593]
[1750406019012,5.17219,2545.1,2544.3,1.2642]
[1750406019214,0.7859,2544.6,2544.5,0.7859]
[1750406019414,0.7859,2544.6,2544.5,2.0501]
[1750406019614,0.78583,2544.9,2544.5,1.2642]
[1750406019820,0.78583,2544.9,2544.8,0.78583]
[1750406020022,0.78584,2544.8,2544.7,0.78585]
[1750406020418,0.78582,2544.9,2544.8,0.78581]
[1750406020625,0.78575,2545.1,2545.0,0.78577]
[1750406020820,0.78577,2545.0,2544.9,0.06933781]
[1750406021219,0.78577,2545.0,2544.9,0.85513781]
[1750406021420,0.78577,2545.0,2544.9,0.06933781]
[1750406021815,0.78577,2545.0,2544.9,0.85513781]
[1750406022122,0.78577,2545.0,2544.9,0.06933781]
[1750406022722,0.78577,2545.0,2544.9,0.85513781]
[1750406025023,0.78577,2545.0,2544.9,0.06933781]
[1750406025322,0.78577,2545.0,2544.9,0.85513781]
[1750406026313,0.78577,2545.0,2544.7,2.86082281]
[1750406026314,14.62273074,2545.0,2544.7,1.52852281]
[1750406026518,0.78599,2544.3,2544.2,0.786]
[1750406026724,0.78598,2544.4,2544.3,0.78599]
[1750406026921,0.78598,2544.4,2544.0,6.04652281]